fUST/lending_fUST_20240224
["ID","MTS","AMOUNT","RATE_DAILY","PERIOD"]
[314999226,1708722646486,-500.0,0.00019178,2]
[314999228,1708722646495,-359.57618202,0.00019178,2]
[314999230,1708722646504,-268.64780144,0.00019178,2]
[314999233,1708722646516,-291.02219856,0.00019178,2]
[314999235,1708722646525,-882.39,0.00019178,2]
[314999236,1708722646535,-2266.46,0.00019178,2]
[314999238,1708722646546,-1070.02,0.00019178,2]
[314999240,1708722646555,-940.82,0.00019178,2]
[314999242,1708722646564,-1914.56,0.00019178,2]
[314999244,1708722646573,-4596.96623761,0.00019178,2]
[314999247,1708722646586,-8562.56376239,0.00019178,2]
[314999249,1708722646595,-310.0,0.00019178,2]
[314999251,1708722646604,-3920.78,0.00019178,2]
[314999253,1708722646613,-631.26,0.00019178,2]
[314999255,1708722646623,-500.0,0.00019178,2]
[314999257,1708722646632,-4878.54,0.00019178,2]
[314999259,1708722646641,-500.0,0.00019178,2]
[314999261,1708722646653,-500.0,0.00019178,2]
[314999263,1708722646662,-1567.11,0.00019178,2]
[314999265,1708722646671,-719.27,0.00019178,2]
[314999267,1708722646680,-500.0,0.00019178,2]
[314999269,1708722646689,-166.666666,0.00019178,2]
[314999271,1708722646698,-17898.18985996,0.00019442,3]
[315000254,1708723838565,-1017.76,0.00018994,2]
[315000275,1708723841775,-143.52269007,0.00018994,2]
[315000277,1708723841784,-1622.40498126,0.00018995,2]
[315000279,1708723841793,-232.75814696,0.00019078,2]
[315000281,1708723841803,-300.16,0.00019168,3]
[315000283,1708723841812,-500.0,0.00019178,2]
[315000285,1708723841821,-592.35,0.00019178,2]
[315000287,1708723841830,-500.0,0.00019178,2]
[315000289,1708723841839,-230.95084439,0.00019178,2]
[315000291,1708723841850,-269.04915561,0.00019178,2]
[315000293,1708723841859,-500.0,0.00019178,2]
[315000295,1708723841869,-500.0,0.00019178,2]
[315000297,1708723841879,-652.42,0.00019178,2]
[315000299,1708723841888,-500.0,0.00019178,2]
[315000301,1708723841897,-603.47952692,0.00019178,2]
[315000303,1708723841908,-551.96381553,0.00019178,2]
[315000305,1708723841917,-500.0,0.00019178,2]
[315000307,1708723841927,-151.0,0.00019178,2]
[315000310,1708723841936,-500.0,0.00019178,2]
[315000312,1708723841945,-500.0,0.00019178,2]
[315000313,1708723841954,-500.0,0.00019178,2]
[315000316,1708723841964,-500.0,0.00019178,2]
[315000318,1708723841973,-726.27,0.00019178,2]
[315000320,1708723841984,-500.0,0.00019178,2]
[315000322,1708723841993,-500.0,0.00019178,2]
[315000323,1708723842002,-616.22,0.00019178,2]
[315000326,1708723842012,-500.0,0.00019178,2]
[315000327,1708723842021,-500.0,0.00019178,2]
[315000330,1708723842031,-500.0,0.00019178,2]
[315000332,1708723842041,-500.0,0.00019178,2]
[315000333,1708723842050,-1000.0,0.00019178,2]
[315000336,1708723842059,-500.0,0.00019178,2]
[315000337,1708723842068,-500.0,0.00019178,2]
[315000340,1708723842078,-1023.71,0.00019178,2]
[315000342,1708723842087,-216.19125364,0.00019178,2]
[315000344,1708723842096,-500.0,0.00019178,2]
[315000345,1708723842105,-536.35,0.00019178,2]
[315000347,1708723842114,-500.0,0.00019178,2]
[315000351,1708723842134,-500.0,0.00019178,2]
[315000353,1708723842144,-20.41857918,0.00019178,2]
[315000355,1708723842158,-479.58142082,0.00019178,2]
[315000357,1708723842168,-500.0,0.00019178,2]
[315000359,1708723842178,-500.0,0.00019178,2]
[315000361,1708723842187,-500.0,0.00019178,2]
[315000363,1708723842197,-500.0,0.00019178,2]
[315000365,1708723842207,-500.0,0.00019178,2]
[315000367,1708723842217,-262.16049762,0.00019178,2]
[315000370,1708723842226,-372.31351249,0.00019178,2]
[315000372,1708723842236,-602.79875198,0.00019178,2]
[315000374,1708723842245,-500.0,0.00019178,2]
[315000376,1708723842254,-500.0,0.00019178,2]
[315000378,1708723842264,-6409.57,0.00019178,2]
[315000380,1708723842273,-500.0,0.00019178,2]
[315000382,1708723842283,-1199.95,0.00019178,2]
[315000384,1708723842292,-500.0,0.00019178,2]
[315000386,1708723842302,-2279.85,0.00019178,2]
[315000388,1708723842313,-576.83,0.00019178,2]
[315000390,1708723842322,-1519.43,0.00019178,2]
[315000392,1708723842331,-1044.92,0.00019178,2]
[315000394,1708723842341,-494.22537983,0.00019178,2]
[315000396,1708723842350,-1005.48,0.00019178,2]
[315000398,1708723842360,-500.0,0.00019178,2]
[315000400,1708723842370,-436.09105889,0.00019178,2]
[315000402,1708723842382,-1498.37,0.00019178,2]
[315000404,1708723842391,-500.0,0.00019178,2]
[315000406,1708723842401,-1035.53,0.00019178,2]
[315000407,1708723842413,-500.0,0.00019178,2]
[315000408,1708723842422,-169.56128065,0.00019178,2]
[315000409,1708723842431,-500.0,0.00019178,2]
[315000410,1708723842440,-12289.24,0.00019178,2]
[315000411,1708723842450,-500.0,0.00019178,2]
[315000412,1708723842460,-500.0,0.00019178,2]
[315000413,1708723842468,-500.0,0.00019178,2]
[315000414,1708723842478,-500.0,0.00019178,2]
[315000415,1708723842491,-500.0,0.00019178,2]
[315000416,1708723842500,-1272.06,0.00019178,2]
[315000417,1708723842510,-599.84,0.00019178,2]
[315000418,1708723842519,-500.0,0.00019178,2]
[315000419,1708723842528,-974.57,0.00019178,2]
[315000420,1708723842537,-500.0,0.00019178,2]
[315000421,1708723842547,-500.0,0.00019178,2]
[315000422,1708723842555,-2382.64,0.00019178,2]
[315000423,1708723842564,-1964.53,0.00019178,2]
[315000425,1708723842574,-500.0,0.00019178,2]
[315000427,1708723842583,-4115.87,0.00019178,2]
[315000429,1708723842592,-500.0,0.00019178,2]
[315000431,1708723842601,-1067.11,0.00019178,2]
[315000433,1708723842611,-4971.81,0.00019178,2]
[315000435,1708723842621,-937.71,0.00019178,2]
[315000437,1708723842632,-500.0,0.00019178,2]
[315000439,1708723842642,-500.0,0.00019178,2]
[315000441,1708723842651,-1501.82,0.00019178,2]
[315000443,1708723842660,-2038.01,0.00019178,2]
[315000445,1708723842670,-13261.92,0.00019178,2]
[315000447,1708723842679,-700.44,0.00019178,2]
[315000449,1708723842688,-500.0,0.00019178,2]
[315000451,1708723842697,-646.62,0.00019178,2]
[315000453,1708723842706,-1451.3,0.00019178,2]
[315000455,1708723842716,-500.0,0.00019178,2]
[315000457,1708723842726,-500.0,0.00019178,2]
[315000459,1708723842735,-500.0,0.00019178,2]
[315000461,1708723842744,-500.0,0.00019178,2]
[315000463,1708723842754,-500.0,0.00019178,2]
[315000465,1708723842763,-500.0,0.00019178,2]
[315000467,1708723842773,-730.97,0.00019178,2]
[315000469,1708723842782,-1137.2,0.00019178,2]
[315000471,1708723842791,-166.666666,0.00019178,2]
[315000473,1708723842801,-154.81637835,0.00019345,2]
[315000475,1708723842810,-151.0,0.00019352,2]
[315000477,1708723842819,-151.0,0.00019352,2]
[315000479,1708723842828,-4026.34078819,0.00019352,2]
[315000481,1708723842838,-300.0,0.00019435,2]
[315000483,1708723842847,-155.43670291,0.0001944,2]
[315000485,1708723842856,-309.78137612,0.00019441,2]
[315000487,1708723842865,-625.44826244,0.00019451,2]
[315000489,1708723842875,-500.0,0.00019452,2]
[315000491,1708723842884,-652.42,0.00019452,2]
[315000493,1708723842893,-500.0,0.00019452,2]
[315000495,1708723842902,-500.0,0.00019452,2]
[315000497,1708723842911,-500.0,0.00019452,2]
[315000499,1708723842921,-726.27,0.00019452,2]
[315000501,1708723842930,-500.0,0.00019452,2]
[315000503,1708723842939,-616.22,0.00019452,2]
[315000505,1708723842948,-500.0,0.00019452,2]
[315000507,1708723842957,-500.0,0.00019452,2]
[315000509,1708723842967,-1023.71,0.00019452,2]
[315000511,1708723842976,-500.0,0.00019452,2]
[315000513,1708723842986,-151.0,0.00019452,2]
[315000515,1708723842995,-151.0,0.00019452,2]
[315000517,1708723843005,-285.347734,0.00019452,2]
[315000519,1708723843016,-500.0,0.00019452,2]
[315000522,1708723843025,-500.0,0.00019452,2]
[315000524,1708723843036,-500.0,0.00019452,2]
[315000526,1708723843045,-151.0,0.00019452,2]
[315000528,1708723843055,-151.0,0.00019452,2]
[315000530,1708723843064,-151.0,0.00019452,2]
[315000532,1708723843073,-151.0,0.00019452,2]
[315000534,1708723843082,-500.0,0.00019452,2]
[315000536,1708723843091,-151.0,0.00019452,2]
[315000538,1708723843100,-151.0,0.00019452,2]
[315000540,1708723843109,-151.0,0.00019452,2]
[315000542,1708723843119,-6409.57,0.00019452,2]
[315000544,1708723843129,-1199.95,0.00019452,2]
[315000546,1708723843139,-2279.85,0.00019452,2]
[315000548,1708723843148,-576.83,0.00019452,2]
[315000550,1708723843157,-1519.43,0.00019452,2]
[315000552,1708723843166,-1044.92,0.00019452,2]
[315000554,1708723843176,-1005.48,0.00019452,2]
[315000556,1708723843186,-500.0,0.00019452,2]
[315000558,1708723843195,-1498.37,0.00019452,2]
[315000560,1708723843204,-1035.53,0.00019452,2]
[315000563,1708723843213,-12289.24,0.00019452,2]
[315000565,1708723843222,-500.0,0.00019452,2]
[315000567,1708723843232,-1272.06,0.00019452,2]
[315000569,1708723843241,-599.84,0.00019452,2]
[315000571,1708723843250,-500.0,0.00019452,2]
[315000573,1708723843260,-974.57,0.00019452,2]
[315000575,1708723843269,-2382.64,0.00019452,2]
[315000577,1708723843279,-1964.53,0.00019452,2]
[315000579,1708723843288,-500.0,0.00019452,2]
[315000581,1708723843297,-4115.87,0.00019452,2]
[315000583,1708723843306,-1067.11,0.00019452,2]
[315000585,1708723843315,-4971.81,0.00019452,2]
[315000587,1708723843325,-937.71,0.00019452,2]
[315000589,1708723843334,-1501.82,0.00019452,2]
[315000591,1708723843343,-2038.01,0.00019452,2]
[315000593,1708723843352,-13261.92,0.00019452,2]
[315000595,1708723843362,-700.44,0.00019452,2]
[315000596,1708723843371,-646.62,0.00019452,2]
[315000598,1708723843382,-1451.3,0.00019452,2]
[315000600,1708723843392,-500.0,0.00019452,2]
[315000603,1708723843402,-500.0,0.00019452,2]
[315000605,1708723843416,-500.0,0.00019452,2]
[315000606,1708723843426,-730.97,0.00019452,2]
[315000609,1708723843435,-1137.2,0.00019452,2]
[315000610,1708723843444,-1000.0,0.000195,2]
[315000613,1708723843454,-153.0,0.000195,2]
[315000615,1708723843464,-153.0,0.000195,2]
[315000617,1708723843474,-153.0,0.000195,2]
[315000619,1708723843484,-153.0,0.000195,2]
[315000621,1708723843494,-153.0,0.000195,2]
[315000623,1708723843504,-153.0,0.000195,2]
[315000625,1708723843514,-306.0,0.000195,2]
[315000627,1708723843523,-153.0,0.000195,2]
[315000629,1708723843532,-153.0,0.000195,2]
[315000631,1708723843542,-153.0,0.000195,2]
[315000633,1708723843551,-153.0,0.000195,2]
[315000635,1708723843560,-153.0,0.000195,2]
[315000637,1708723843570,-153.0,0.000195,2]
[315000639,1708723843581,-153.0,0.000195,2]
[315000641,1708723843590,-153.0,0.000195,2]
[315000643,1708723843600,-153.0,0.000195,2]
[315000644,1708723843609,-153.0,0.000195,2]
[315000647,1708723843621,-153.0,0.000195,2]
[315000649,1708723843632,-153.0,0.000195,2]
[315000651,1708723843641,-153.0,0.000195,2]
[315000653,1708723843651,-153.0,0.000195,2]
[315000655,1708723843660,-153.0,0.000195,2]
[315000657,1708723843670,-151.0,0.00019626,2]
[315000659,1708723843679,-166.666666,0.00019627,2]
[315000661,1708723843689,-300.0,0.00019694,2]
[315000663,1708723843698,-153.0,0.000197,2]
[315000665,1708723843708,-153.0,0.000197,2]
[315000666,1708723843718,-153.0,0.000197,2]
[315000669,1708723843728,-153.0,0.000197,2]
[315000671,1708723843738,-153.0,0.000197,2]
[315000673,1708723843747,-153.0,0.000197,2]
[315000675,1708723843756,-153.0,0.000197,2]
[315000677,1708723843765,-153.0,0.000197,2]
[315000679,1708723843775,-652.42,0.00019726,2]
[315000681,1708723843784,-726.27,0.00019726,2]
[315000683,1708723843794,-500.0,0.00019726,2]
[315000685,1708723843803,-616.22,0.00019726,2]
[315000687,1708723843812,-1023.71,0.00019726,2]
[315000689,1708723843821,-500.0,0.00019726,2]
[315000691,1708723843830,-500.0,0.00019726,2]
[315000693,1708723843839,-500.0,0.00019726,2]
[315000695,1708723843848,-151.0,0.00019726,2]
[315000697,1708723843857,-245.04,0.00019726,2]
[315000699,1708723843866,-6409.57,0.00019726,2]
[315000701,1708723843875,-1199.95,0.00019726,2]
[315000702,1708723843884,-2279.85,0.00019726,2]
[315000704,1708723843894,-576.83,0.00019726,2]
[315000706,1708723843903,-1519.43,0.00019726,2]
[315000708,1708723843913,-1044.92,0.00019726,2]
[315000711,1708723843922,-1005.48,0.00019726,2]
[315000713,1708723843931,-1498.37,0.00019726,2]
[315000715,1708723843941,-1035.53,0.00019726,2]
[315000717,1708723843950,-12289.24,0.00019726,2]
[315000719,1708723843958,-500.0,0.00019726,2]
[315000721,1708723843967,-1272.06,0.00019726,2]
[315000723,1708723843977,-599.84,0.00019726,2]
[315000725,1708723843986,-974.57,0.00019726,2]
[315000727,1708723843995,-2382.64,0.00019726,2]
[315000729,1708723844004,-1964.53,0.00019726,2]
[315000731,1708723844013,-500.0,0.00019726,2]
[315000733,1708723844022,-4115.87,0.00019726,2]
[315000735,1708723844032,-1067.11,0.00019726,2]
[315000737,1708723844041,-937.71,0.00019726,2]
[315000739,1708723844050,-4971.81,0.00019726,2]
[315000741,1708723844059,-1501.82,0.00019726,2]
[315000743,1708723844068,-2038.01,0.00019726,2]
[315000745,1708723844077,-13261.92,0.00019726,2]
[315000747,1708723844086,-700.44,0.00019726,2]
[315000749,1708723844096,-646.62,0.00019726,2]
[315000751,1708723844105,-1451.3,0.00019726,2]
[315000753,1708723844114,-730.97,0.00019726,2]
[315000755,1708723844123,-261.60013435,0.00019726,2]
[315000757,1708723844133,-1137.2,0.00019726,2]
[315000759,1708723844142,-240.3711165,0.000198,2]
[315000761,1708723844151,-153.0,0.000198,2]
[315000763,1708723844161,-153.0,0.000198,2]
[315000765,1708723844170,-580.0,0.000198,2]
[315000767,1708723844179,-620.0000016,0.00019828,2]
[315000769,1708723844188,-153.0,0.000199,2]
[315000771,1708723844197,-2688.21082584,0.000199,2]
[315000773,1708723844206,-300.0,0.00019952,2]
[315000775,1708723844215,-639.82470976,0.00019998,2]
[315000777,1708723844225,-1412.29479491,0.00019998,2]
[315000779,1708723844235,-1448.31818436,0.00019999,2]
[315000781,1708723844246,-193471.09375579,0.0002,2]
[315000784,1708723844262,-1840.09803724,0.0002,2]
[315000798,1708723844381,-312143.64471336,0.0002,2]
[315001383,1708723850053,-580.0,0.000198,2]
[315001385,1708723850062,-928.08696117,0.0001999,3]
[315001689,1708725001534,161.661984,0.00027397,120]
[315001741,1708725037734,-1622.40498126,0.00019174,2]
[315001743,1708725037748,-544.75728033,0.00019175,2]
[315002084,1708725044045,-229.43117972,0.00019175,2]
[315002086,1708725044054,-500.4048006,0.00019178,2]
[315002088,1708725044063,-500.0,0.00019178,2]
[315002090,1708725044072,-500.0,0.00019178,2]
[315002092,1708725044082,-340.92286592,0.00019178,2]
[315002095,1708725044104,-159.07713408,0.00019178,2]
[315002097,1708725044113,-500.0,0.00019178,2]
[315002099,1708725044122,-500.0,0.00019178,2]
[315002101,1708725044131,-635.48,0.00019178,2]
[315002103,1708725044141,-500.0,0.00019178,2]
[315002106,1708725044150,-500.0,0.00019178,2]
[315002107,1708725044159,-539.19,0.00019178,2]
[315002110,1708725044168,-524.86,0.00019178,2]
[315002112,1708725044177,-935.48,0.00019178,2]
[315002113,1708725044187,-500.0,0.00019178,2]
[315002115,1708725044196,-500.0,0.00019178,2]
[315002118,1708725044207,-612.88,0.00019178,2]
[315002120,1708725044216,-518.77,0.00019178,2]
[315002122,1708725044225,-500.0,0.00019178,2]
[315002123,1708725044233,-1125.86,0.00019178,2]
[315002126,1708725044243,-500.0,0.00019178,2]
[315002127,1708725044252,-865.02984185,0.00019178,2]
[315002130,1708725044263,-464.47015815,0.00019178,2]
[315002132,1708725044273,-914.31,0.00019178,2]
[315002134,1708725044281,-500.0,0.00019178,2]
[315002136,1708725044291,-245.13658385,0.00019178,2]
[315002138,1708725044302,-254.86341615,0.00019178,2]
[315002140,1708725044311,-1632.48862863,0.00019178,2]
[315002297,1708725051118,-1047.96184704,0.00019178,2]
[315002298,1708725051130,-500.0,0.00019178,2]
[315002305,1708725481421,161.661984,0.00027397,120]
[315002357,1708726231951,-500.0,0.00019178,2]
[315002358,1708726231961,-500.0,0.00019178,2]
[315002359,1708726231971,-500.0,0.00019178,2]
[315002360,1708726231980,-500.0,0.00019178,2]
[315002361,1708726231989,-500.0,0.00019178,2]
[315002362,1708726231998,-500.0,0.00019178,2]
[315002363,1708726232008,-565.46,0.00019178,2]
[315002365,1708726232017,-115.53553926,0.00019178,2]
[315002731,1708726241261,-1782.23446074,0.00019178,2]
[315002733,1708726241270,-870.59,0.00019178,2]
[315002735,1708726241279,-1852.86,0.00019178,2]
[315002737,1708726241288,-401.40553926,0.00019178,2]
[315002739,1708726241299,-185.94446074,0.00019178,2]
[315002741,1708726241308,-500.0,0.00019178,2]
[315002743,1708726241319,-500.0,0.00019178,2]
[315002745,1708726241327,-500.0,0.00019178,2]
[315002747,1708726241336,-500.0,0.00019178,2]
[315002749,1708726241345,-500.0,0.00019178,2]
[315002751,1708726241354,-500.0,0.00019178,2]
[315002753,1708726241363,-500.0,0.00019178,2]
[315002755,1708726241372,-558.39,0.00019178,2]
[315002756,1708726241381,-500.0,0.00019178,2]
[315002758,1708726241391,-500.0,0.00019178,2]
[315002760,1708726241400,-500.0,0.00019178,2]
[315002762,1708726241409,-612.53,0.00019178,2]
[315002764,1708726241419,-500.0,0.00019178,2]
[315002766,1708726241427,-500.0,0.00019178,2]
[315002768,1708726241436,-500.0,0.00019178,2]
[315002770,1708726241445,-500.0,0.00019178,2]
[315002772,1708726241454,-500.0,0.00019178,2]
[315002774,1708726241465,-928.65,0.00019178,2]
[315002776,1708726241473,-500.0,0.00019178,2]
[315002778,1708726241482,-500.0,0.00019178,2]
[315002780,1708726241491,-500.0,0.00019178,2]
[315002782,1708726241500,-500.53936311,0.00019178,2]
[315002784,1708726241509,-500.0,0.00019178,2]
[315002785,1708726241518,-500.0,0.00019178,2]
[315002787,1708726241527,-500.0,0.00019178,2]
[315002789,1708726241535,-500.0,0.00019178,2]
[315002791,1708726241545,-500.0,0.00019178,2]
[315002793,1708726241555,-500.0,0.00019178,2]
[315002795,1708726241564,-500.0,0.00019178,2]
[315002797,1708726241573,-500.0,0.00019178,2]
[315002799,1708726241582,-5671.3,0.00019178,2]
[315002801,1708726241591,-573.59582811,0.00019178,2]
[315002803,1708726241600,-2191.47,0.00019178,2]
[315002805,1708726241609,-12281.99,0.00019178,2]
[315002807,1708726241619,-500.0,0.00019178,2]
[315002809,1708726241628,-155.55098902,0.00019178,2]
[315002811,1708726241638,-500.0,0.00019178,2]
[315002812,1708726241647,-406.2807098,0.00019178,2]
[315002814,1708726241656,-500.0,0.00019178,2]
[315002816,1708726241665,-500.0,0.00019178,2]
[315002818,1708726241674,-500.0,0.00019178,2]
[315002820,1708726241683,-665.6,0.00019178,2]
[315002822,1708726241691,-500.0,0.00019178,2]
[315002824,1708726241701,-500.0,0.00019178,2]
[315002826,1708726241711,-500.0,0.00019178,2]
[315002828,1708726241720,-702.1,0.00019178,2]
[315002830,1708726241728,-916.84,0.00019178,2]
[315002832,1708726241737,-500.0,0.00019178,2]
[315002834,1708726241746,-2243.78,0.00019178,2]
[315002836,1708726241755,-504.72,0.00019178,2]
[315002838,1708726241765,-876.81,0.00019178,2]
[315002840,1708726241774,-500.0,0.00019178,2]
[315002841,1708726241784,-1205.84,0.00019178,2]
[315002843,1708726241793,-917.88,0.00019178,2]
[315002845,1708726241802,-3719.62,0.00019178,2]
[315002847,1708726241812,-4448.15,0.00019178,2]
[315002849,1708726241821,-11149.08,0.00019178,2]
[315002851,1708726241830,-500.0,0.00019178,2]
[315002853,1708726241839,-1371.03,0.00019178,2]
[315002855,1708726241850,-1383.83,0.00019178,2]
[315002857,1708726241859,-500.0,0.00019178,2]
[315002859,1708726241869,-1344.66,0.00019178,2]
[315002861,1708726241878,-1200.04,0.00019178,2]
[315002863,1708726241886,-966.35,0.00019178,2]
[315002865,1708726241899,-1307.79,0.00019178,2]
[315002867,1708726241908,-389.13060846,0.00019178,2]
[315002869,1708726241917,-500.0,0.00019178,2]
[315002871,1708726241926,-1038.85,0.00019178,2]
[315002873,1708726241934,-500.0,0.00019178,2]
[315002874,1708726241943,-500.0,0.00019178,2]
[315002876,1708726241952,-976.31,0.00019178,2]
[315002878,1708726241962,-518.37264733,0.00019178,2]
[315002880,1708726241971,-166.666666,0.00019178,2]
[315002882,1708726241980,-460.47588531,0.00019451,2]
[315002884,1708726241989,-500.0,0.00019452,2]
[315002886,1708726241998,-500.0,0.00019452,2]
[315002888,1708726242008,-500.0,0.00019452,2]
[315002890,1708726242016,-500.0,0.00019452,2]
[315002892,1708726242025,-565.46,0.00019452,2]
[315002894,1708726242034,-1897.77,0.00019452,2]
[315002896,1708726242043,-870.59,0.00019452,2]
[315002898,1708726242052,-1852.86,0.00019452,2]
[315002899,1708726242061,-587.35,0.00019452,2]
[315002901,1708726242070,-500.21539291,0.00019452,2]
[315002903,1708726242079,-558.39,0.00019452,2]
[315002905,1708726242090,-403.79348603,0.00019452,2]
[315002907,1708726242100,-612.53,0.00019452,2]
[315002909,1708726242109,-500.0,0.00019452,2]
[315002911,1708726242118,-928.65,0.00019452,2]
[315002912,1708726242128,-500.0,0.00019452,2]
[315002914,1708726242138,-500.0,0.00019452,2]
[315002916,1708726242147,-5671.3,0.00019452,2]
[315002918,1708726242155,-1262.92396298,0.00019452,2]
[315002920,1708726242170,-928.54603702,0.00019452,2]
[315002922,1708726242179,-12281.99,0.00019452,2]
[315002924,1708726242188,-500.0,0.00019452,2]
[315002926,1708726242197,-500.0,0.00019452,2]
[315002928,1708726242206,-500.0,0.00019452,2]
[315002930,1708726242216,-500.0,0.00019452,2]
[315002931,1708726242226,-665.6,0.00019452,2]
[315002933,1708726242236,-500.0,0.00019452,2]
[315002935,1708726242244,-500.0,0.00019452,2]
[315002937,1708726242254,-702.1,0.00019452,2]
[315002939,1708726242263,-916.84,0.00019452,2]
[315002941,1708726242273,-500.0,0.00019452,2]
[315002943,1708726242283,-2243.78,0.00019452,2]
[315002945,1708726242292,-504.72,0.00019452,2]
[315002947,1708726242301,-876.81,0.00019452,2]
[315002949,1708726242311,-220.13436664,0.00019452,2]
[315002951,1708726242320,-1205.84,0.00019452,2]
[315002953,1708726242329,-917.88,0.00019452,2]
[315002955,1708726242338,-3719.62,0.00019452,2]
[315002956,1708726242347,-4448.15,0.00019452,2]
[315002958,1708726242356,-11149.08,0.00019452,2]
[315002960,1708726242365,-1371.03,0.00019452,2]
[315002975,1708726242494,-1383.83,0.00019452,2]
[315002977,1708726242503,-292.4689927,0.00019452,2]
[315002979,1708726242512,-1344.66,0.00019452,2]
[315002981,1708726242522,-1200.04,0.00019452,2]
[315002983,1708726242534,-966.35,0.00019452,2]
[315002985,1708726242543,-1307.79,0.00019452,2]
[315002987,1708726242552,-500.0,0.00019452,2]
[315002989,1708726242562,-1038.85,0.00019452,2]
[315002991,1708726242570,-500.0,0.00019452,2]
[315002993,1708726242581,-500.0,0.00019452,2]
[315002995,1708726242590,-976.31,0.00019452,2]
[315002997,1708726242599,-9859.93970082,0.00019626,2]
[315003000,1708726242608,-166.666666,0.00019627,2]
[315003002,1708726242617,-500.0,0.00019726,2]
[315003003,1708726242626,-565.46,0.00019726,2]
[315003005,1708726242636,-1897.77,0.00019726,2]
[315003007,1708726242645,-870.59,0.00019726,2]
[315003009,1708726242654,-1852.86,0.00019726,2]
[315003010,1708726242663,-587.35,0.00019726,2]
[315003012,1708726242672,-558.39,0.00019726,2]
[315003014,1708726242682,-612.53,0.00019726,2]
[315003016,1708726242691,-928.65,0.00019726,2]
[315003017,1708726242700,-500.0,0.00019726,2]
[315003019,1708726242710,-5671.3,0.00019726,2]
[315003021,1708726242719,-2191.47,0.00019726,2]
[315003023,1708726242728,-3976.20737804,0.00019726,2]
[315003025,1708726242740,-1128.78948919,0.00019726,2]
[315003027,1708726242751,-5577.08676965,0.00019726,2]
[315003071,1708726243400,-371.3167664,0.00019726,2]
[315006061,1708727438924,-10164.49268381,0.00018369,2]
[315006800,1708727445814,-6995.19908489,0.00018369,2]
[315006802,1708727445826,-1999.50911226,0.00018369,2]
[315006822,1708727446166,-540.44538056,0.00018369,2]
[315006829,1708727446231,-301.84221,0.00018369,2]
[315009041,1708727692298,253.111758,0.00018039,2]
[315009042,1708727763636,1154.9602321,0.00018054,2]
[315009087,1708728632314,-364.19083383,0.00018177,2]
[315009091,1708728638329,-4534.32069457,0.00018177,2]
[315009092,1708728638339,-163.55377005,0.00018513,2]
[315009093,1708728638348,-171.4412513,0.00018614,2]
[315009094,1708728638358,-300.0,0.00019176,2]
[315009095,1708728638367,-10090.40940706,0.00019177,2]
[315009096,1708728638377,-500.0,0.00019178,2]
[315009098,1708728638386,-500.0,0.00019178,2]
[315009101,1708728638394,-500.0,0.00019178,2]
[315009103,1708728638403,-500.0,0.00019178,2]
[315009105,1708728638412,-610.13,0.00019178,2]
[315009107,1708728638422,-500.0,0.00019178,2]
[315009109,1708728638431,-500.0,0.00019178,2]
[315009111,1708728638440,-500.0,0.00019178,2]